fUSD/lending_fUSD_20260313
["ID","MTS","AMOUNT","RATE_DAILY","PERIOD"]
[408325131,1773426632828,-150.0,0.00019626,2]
[408325132,1773426632837,-150.0,0.00019626,2]
[408325133,1773426632847,-150.0,0.00019626,2]
[408325134,1773426632856,-150.0,0.00019626,2]
[408325135,1773426632865,-150.0,0.00019626,2]
[408325136,1773426632875,-150.0,0.00019626,2]
[408325137,1773426632884,-155.45975661,0.00019627,2]
[408325138,1773426632894,-486.43,0.00019627,2]
[408325139,1773426632903,-168.0,0.00019633,2]
[408325140,1773426632913,-417.18,0.00019633,2]
[408325141,1773426632927,-200.0,0.00019672,2]
[408325142,1773426632936,-200.0,0.00019672,2]
[408325143,1773426632946,-155.45975661,0.00019672,2]
[408325144,1773426632955,-500.0,0.00019673,2]
[408325145,1773426632966,-188.9940742,0.00019673,2]
[408325146,1773426632976,-151.0,0.00019678,2]
[408325147,1773426632985,-9336.88,0.00019681,2]
[408325148,1773426632996,-9999.99,0.00019681,2]
[408325149,1773426633005,-7801.73,0.00019681,2]
[408325150,1773426633014,-59007.81,0.00019681,2]
[408325151,1773426633024,-9999.99,0.00019681,2]
[408325152,1773426633034,-4406.63,0.00019681,2]
[408325153,1773426633044,-4999.99,0.00019681,2]
[408325154,1773426633053,-5339.1,0.00019681,2]
[408325155,1773426633062,-328.94,0.00019681,2]
[408325156,1773426633072,-999.99,0.00019681,2]
[408325157,1773426633081,-516.89,0.00019681,2]
[408325158,1773426633091,-430.52,0.00019681,2]
[408325159,1773426633099,-3199.71,0.00019681,2]
[408325160,1773426633109,-150.0,0.00019681,2]
[408325161,1773426633118,-150.0,0.00019681,2]
[408325162,1773426633128,-150.0,0.00019681,2]
[408325163,1773426633138,-150.0,0.00019681,2]
[408325164,1773426633147,-216.2,0.00019681,2]
[408325165,1773426633156,-2428.08216467,0.00019696,2]
[408325166,1773426633166,-155.45975661,0.00019718,2]
[408325167,1773426633176,-153.56106976,0.00019729,2]
[408325168,1773426633185,-150.0,0.00019736,2]
[408325169,1773426633194,-160.0,0.00019743,2]
[408325170,1773426633203,-155.45975661,0.00019763,2]
[408325171,1773426633213,-150.0,0.0001979,2]
[408325172,1773426633222,-591.36824,0.000198,2]
[408325173,1773426633232,-591.36824,0.000198,2]
[408325174,1773426633241,-155.45975661,0.00019809,2]
[408325175,1773426633250,-150.0,0.00019845,2]
[408325176,1773426633260,-155.45975661,0.00019854,2]
[408325177,1773426633270,-1119.83576207,0.00019867,2]
[408325178,1773426633284,-1206.39023793,0.00019867,2]
[408325179,1773426633293,-181.956,0.00019867,2]
[408325180,1773426633303,-500.0,0.00019873,2]
[408325181,1773426633313,-500.0,0.00019873,2]
[408325182,1773426633323,-500.0,0.00019873,2]
[408325183,1773426633332,-2112.15750461,0.00019875,2]
[408325184,1773426633344,-3687.84249539,0.00019875,2]
[408325185,1773426633354,-500.0,0.00019882,2]
[408325186,1773426633363,-5800.0,0.00019883,2]
[408325187,1773426633373,-5800.0,0.00019892,2]
[408325188,1773426633382,-151.0,0.00019897,2]
[408325189,1773426633392,-500.0,0.00019899,2]
[408325190,1773426633402,-250.0,0.000199,2]
[408325191,1773426633412,-2154.21110534,0.000199,2]
[408325192,1773426633424,-51886.52309466,0.000199,2]
[408325193,1773426633434,-5800.0,0.000199,2]
[408325194,1773426633444,-155.45975661,0.000199,2]
[408325195,1773426633454,-486.43,0.00019901,2]
[408325196,1773426633464,-216.2,0.00019955,2]
[408325197,1773426633474,-500.0,0.00019973,2]
[408325198,1773426633484,-295.76807635,0.0001999,2]
[408325199,1773426633493,-295.76807635,0.0001999,2]
[408325200,1773426633503,-295.76807635,0.0001999,2]
[408325201,1773426633513,-151.0,0.00019997,2]
[408325202,1773426633523,-151.0,0.00019997,2]
[408325203,1773426633533,-500.0,0.00019998,2]
[408325204,1773426633542,-256.33749485,0.00019998,2]
[408325205,1773426633552,-500.0,0.00019998,2]
[408325206,1773426633562,-500.0,0.00019998,2]
[408325207,1773426633571,-500.0,0.00019998,2]
[408325208,1773426633581,-500.0,0.00019998,2]
[408325209,1773426633590,-500.0,0.00019998,2]
[408325210,1773426633601,-500.00975608,0.00019999,2]
[408325211,1773426633610,-1904.72,0.00019999,2]
[408325212,1773426633619,-1904.72,0.00019999,2]
[408325213,1773426633630,-1904.72,0.00019999,2]
[408325214,1773426633639,-1904.72,0.00019999,2]
[408325215,1773426633649,-1904.72,0.00019999,2]
[408325216,1773426633659,-1904.72,0.00019999,2]
[408325217,1773426633668,-1904.72,0.00019999,2]
[408325218,1773426633677,-1904.72,0.00019999,2]
[408325219,1773426633687,-1904.72,0.00019999,2]
[408325220,1773426633696,-1904.72,0.00019999,2]
[408325221,1773426633706,-1904.72,0.00019999,2]
[408325222,1773426633716,-1904.72,0.00019999,2]
[408325223,1773426633725,-1904.72,0.00019999,2]
[408325224,1773426633735,-1904.72,0.00019999,2]
[408325225,1773426633745,-1904.72,0.00019999,2]
[408325226,1773426633754,-1904.72,0.00019999,2]
[408325227,1773426633765,-138.44905965,0.00019999,2]
[408325228,1773426633778,-561.36,0.00019999,2]
[408325229,1773426633794,-1204.91094035,0.00019999,2]
[408325230,1773426633803,-1904.72,0.00019999,2]
[408325231,1773426633813,-684.98023131,0.00019999,2]
[408325232,1773426633825,-722.1175,0.00019999,2]
[408325233,1773426633836,-497.62226869,0.00019999,2]
[408325234,1773426633846,-571.35954298,0.00019999,2]
[408325235,1773426633858,-612.42885743,0.00019999,2]
[408325236,1773426633869,-553.16184,0.00019999,2]
[408325237,1773426633882,-167.76975959,0.00019999,2]
[408325238,1773426633893,-947.56905065,0.00019999,2]
[408325239,1773426633903,-437.436765,0.00019999,2]
[408325255,1773426638268,-347.32,0.00019882,2]
[408325256,1773426638281,-86.34808291,0.00019882,2]
[408325257,1773426638291,-519.71418435,0.00019999,2]
[408325258,1773426638300,-1904.72,0.00019999,2]
[408325259,1773426638310,-1904.72,0.00019999,2]
[408325260,1773426638320,-1904.90379142,0.00019999,2]
[408325261,1773426638330,-500.0,0.00019999,2]
[408325262,1773426638340,-213.41003555,0.00019999,2]
[408325263,1773426638350,-500.0,0.00019999,2]
[408325264,1773426638360,-200.58683924,0.00019999,2]
[408325265,1773426638370,-2960.0,0.0002,2]
[408325266,1773426638380,-2365.0,0.0002,2]
[408325267,1773426638389,-2654.02270931,0.0002,2]
[408325268,1773426638401,-1020.29583807,0.0002,2]
[408325269,1773426638426,-1148.33694624,0.0002,2]
[408325270,1773426638437,-942.00240324,0.0002,2]
[408325271,1773426638453,-884.78620402,0.0002,2]
[408325272,1773426638465,-965.60128741,0.0002,2]
[408325273,1773426638477,-36235.06422494,0.0002,2]
[408325274,1773426638489,-903.2919644,0.0002,2]
[408325275,1773426638546,-67601.74289142,0.0002,2]
[408325281,1773426640503,-150.0,0.00019882,2]
[408325282,1773426640513,-837548.92492964,0.0002,2]
[408325283,1773426640524,-260.34012624,0.0002,2]
[408325284,1773426640769,-2522.48116495,0.0002,2]
[408325313,1773426643627,-500.0,0.00019882,2]
[408325314,1773426643637,-500.0,0.00019999,2]
[408325315,1773426643646,-280.69488742,0.00019999,2]
[408325316,1773426643682,-219.30511258,0.00019999,2]
[408325318,1773426643692,-500.0,0.00019999,2]
[408325320,1773426643702,-451308.13858681,0.0002,2]
[408325322,1773426643713,-30173.22554152,0.0002,2]
[408325427,1773426646177,-7383.54,0.00018585,2]
[408325432,1773426646234,-19779.4411,0.00018585,2]
[408325433,1773426646245,-897.65889154,0.000199,2]
[408325434,1773426646255,-273937.64360139,0.0002,2]
[408325435,1773426646449,-595.57188096,0.0002,2]
[408325444,1773426754439,1000.0,0.00023909,30]
[408325445,1773426938719,3713.207389,0.00022797,30]
[408325446,1773426960200,2000.0,0.0002,10]
[408325447,1773426990144,8000.0,0.00032876,120]
[408325448,1773427031663,1383.0,0.00032876,120]
[408325449,1773427073684,5585.0,0.00032876,120]
[408325450,1773427133077,161.02,0.00029943,120]
[408325451,1773427133835,161.02,0.00029943,120]
[408325452,1773427134594,161.02,0.00029943,120]
[408325453,1773427135345,161.02,0.00029943,120]
[408325454,1773427136290,161.02,0.00029943,120]
[408325455,1773427136899,161.02,0.00029943,120]
[408325456,1773427155632,2188.14007,0.00022766,30]
[408325457,1773427160764,2000.0,0.00032877,120]
[408325458,1773427167504,2000.0,0.00032877,120]
[408325459,1773427173114,2000.0,0.00032877,120]
[408325460,1773427180134,2000.0,0.00032877,120]
[408325461,1773427191625,2158.0,0.00032877,120]
[408325462,1773427196359,-349.057,0.00018585,2]
[408325463,1773427196380,-150.0,0.00018585,2]
[408325464,1773427196401,-1167.008037,0.00018972,7]
[408325465,1773427196427,-300.0,0.00018996,2]
[408325466,1773427196448,-150.0,0.00018997,7]
[408325467,1773427196471,-182.679242,0.00018997,7]
[408325468,1773427196493,-215.358484,0.00018997,7]
[408325469,1773427196516,-248.037727,0.00018997,7]
[408325470,1773427196538,-280.716969,0.00018997,7]
[408325471,1773427196561,-313.396212,0.00018997,7]
[408325472,1773427196584,-346.075454,0.00018997,7]
[408325473,1773427196607,-378.754697,0.00018997,7]
[408325474,1773427196629,-411.433939,0.00018997,7]
[408325475,1773427196655,-444.113182,0.00018997,7]
[408325476,1773427196677,-150.0,0.00019016,2]
[408325477,1773427196702,-242.0,0.00019376,2]
[408325478,1773427196727,-1200.0,0.00019499,2]
[408325479,1773427196749,-13658.48262632,0.000195,2]
[408325480,1773427196774,-168.0,0.00019543,2]
[408325481,1773427196797,-153.56106977,0.00019727,2]
[408325482,1773427202564,2000.0,0.00032877,120]
[408325483,1773427202709,1384.22,0.00019,2]
[408325484,1773427215007,-965.28953,0.000198,2]
[408325485,1773427215031,-171.87201128,0.0001987,2]
[408325486,1773427215063,-160.0,0.00019871,2]
[408325487,1773427215088,-500.0,0.00019873,2]
[408325488,1773427215117,-171.87201122,0.00019873,2]
[408325489,1773427215142,-171.87201122,0.00019877,2]
[408325490,1773427215166,-171.87201122,0.0001988,2]
[408325491,1773427215189,-300.0,0.00019881,2]
[408325492,1773427215214,-1200.0,0.00019881,2]
[408325493,1773427215239,-500.0,0.00019882,2]
[408325494,1773427215263,-500.0,0.00019882,2]
[408325495,1773427215288,-500.0,0.00019882,2]
[408325496,1773427215311,-500.0,0.00019882,2]
[408325497,1773427215335,-171.87201122,0.00019883,2]
[408325498,1773427215359,-171.87201122,0.00019887,2]
[408325499,1773427215382,-171.87201122,0.0001989,2]
[408325500,1773427215407,-171.87201122,0.00019893,2]
[408325501,1773427215435,-171.87201122,0.00019897,2]
[408325502,1773427215458,-4187.96772987,0.000199,2]
[408325503,1773427241668,-812.03227013,0.000199,2]
[408325504,1773427241691,-965.28953,0.000199,2]
[408325505,1773427241909,-500.0,0.000199,2]
[408325506,1773427241932,-500.0,0.000199,2]
[408325507,1773427241954,-322.6119,0.000199,2]
[408325508,1773427241977,-100266.06629987,0.000199,2]
[408325509,1773427650126,-353.1764,0.00018485,2]
[408325510,1773427650148,-250.0,0.00018485,2]
[408325511,1773427650169,-150.0,0.00018485,2]
[408325512,1773427650189,-5462.17,0.00019022,2]
[408325513,1773427650211,-623.35,0.00019045,2]
[408325514,1773427650236,-3400.0,0.000191,6]
[408325515,1773427650256,-6800.0,0.000192,7]
[408325516,1773427650278,-10300.0,0.000193,7]
[408325517,1773427650298,-13700.0,0.000194,7]
[408325518,1773427650317,-17100.0,0.000195,7]
[408325519,1773427650337,-3400.0,0.000196,7]
[408325520,1773427650356,-3400.0,0.000197,7]
[408325521,1773427650375,-780.95,0.00019711,2]
[408325522,1773427650394,-1517.28,0.00019711,2]
[408325523,1773427650413,-153.56106977,0.00019727,2]
[408325524,1773427650433,-1104.0,0.00019799,2]
[408325525,1773427650452,-300.0,0.00019799,2]
[408325526,1773427650475,-48826.32820028,0.000198,2]
[408325527,1773427681336,10000.0,0.0002,10]
[408325528,1773427743614,10000.0,0.0002,10]
[408325529,1773427790595,7179.0,0.0002,10]
[408325530,1773427805576,200.0,0.0003,120]
[408325531,1773427822009,200.0,0.00026,120]
[408325532,1773427828550,200.0,0.00026,120]
[408325533,1773427830816,200.0,0.00026,120]
[408325540,1773427831740,-0.74848866,0.00018024,2]
[408325541,1773427831758,-299.25151134,0.00018024,2]
[408325542,1773427831768,-187.40386507,0.00018024,2]
[408325543,1773427831777,-1877.95522874,0.00018025,4]
[408325544,1773427831788,-8121.52457832,0.00018025,4]
[408325545,1773427831799,-349.05701941,0.00018025,4]
[408325546,1773427831810,-38668.00530903,0.00018025,4]
[408325547,1773427831819,-166.66,0.00018025,2]
[408325548,1773427831828,-166.66,0.00018404,2]
[408325549,1773427831837,-166.66,0.00018784,2]
[408325550,1773427831847,-729.0,0.00018905,2]
[408325551,1773427831857,-1616.9,0.00018931,2]
[408325552,1773427831866,-166.66,0.00019163,2]
[408325553,1773427831876,-166.66,0.00019543,2]
[408325554,1773427831886,-420.0,0.00019665,2]
[408325555,1773427831896,-14470.95332636,0.000198,2]
[408325556,1773427831907,-12115.69603192,0.000198,2]
[408325557,1773427831919,-25492.91424144,0.000198,2]
[408325558,1773427831929,-394.24549,0.000198,2]
[408325559,1773427831939,-1372.8629097,0.000198,2]
[408325560,1773427831948,-3400.0,0.000198,7]
[408325561,1773427831958,-1372.86290965,0.00019811,2]
[408325562,1773427831967,-1372.86290965,0.00019822,2]
[408325563,1773427831977,-195.0,0.00019827,2]
[408325564,1773427831986,-1372.86290965,0.00019833,2]
[408325565,1773427831996,-1372.86290965,0.00019844,2]
[408325566,1773427832006,-1372.86290965,0.00019856,2]
[408325567,1773427832016,-500.0,0.00019863,2]
[408325568,1773427832025,-1372.86290965,0.00019867,2]
[408325569,1773427832035,-1372.86290965,0.00019878,2]
[408325570,1773427832044,-160.0,0.00019888,2]
[408325571,1773427832053,-1372.86290965,0.00019889,2]
[408325572,1773427832062,-6236.31840013,0.000199,2]
[408325573,1773427832071,-887.50907136,0.000199,2]
[408325574,1773427832081,-9999.99,0.000199,2]
[408325575,1773427832090,-299.99,0.000199,7]
[408325576,1773427832099,-394.24549,0.000199,2]
[408325577,1773427832108,-500.0,0.000199,2]
[408325578,1773427832117,-337.53416247,0.000199,2]
[408325579,1773427832127,-3400.0,0.000199,7]
[408325580,1773427832137,-1372.86290965,0.000199,2]
[408325581,1773427832146,-18102.30205654,0.000199,2]
[408325582,1773427832155,-393.0519504,0.000199,2]
[408325583,1773427832165,-17139.84698592,0.000199,2]
[408325584,1773427832174,-166.66,0.00019922,2]
[408325585,1773427832183,-8438.67207009,0.00019926,2]
[408325586,1773427832193,-500.0,0.0001997,2]
[408325587,1773427832203,-1000.0,0.0001997,2]
[408325588,1773427832213,-1000.0,0.0001997,2]
[408325589,1773427832222,-500.0,0.0001997,2]
[408325590,1773427832232,-1000.0,0.0001997,2]
[408325591,1773427832241,-500.0,0.0001997,2]
[408325592,1773427832250,-1000.0,0.0001997,2]
[408325593,1773427832260,-500.0,0.0001997,2]
[408325594,1773427832271,-500.0,0.0001997,2]
[408325595,1773427832283,-947.70236221,0.0001997,2]
[408325596,1773427832293,-1000.0,0.0001997,2]
[408325597,1773427832302,-1000.0,0.0001997,2]
[408325598,1773427832312,-1000.0,0.0001997,2]
[408325599,1773427832532,-1000.0,0.0001997,2]
[408325600,1773427832542,-1356.7780659,0.0001997,2]
[408325601,1773427832553,-308.94,0.0001997,2]
[408325602,1773427832562,-2248.24,0.0001997,2]
[408325603,1773427832572,-2917.19,0.0001997,2]
[408325604,1773427832582,-150.99,0.0001997,2]
[408325605,1773427832591,-150.99,0.0001997,2]
[408325606,1773427832601,-500.0,0.0001997,2]
[408325607,1773427832611,-500.0,0.00019973,2]
[408325608,1773427832620,-500.0,0.00019973,2]
[408325609,1773427832629,-285.67076732,0.00019973,2]
[408325610,1773427832639,-1860.98,0.00019973,2]
[408325611,1773427832649,-151.0,0.00019997,2]
[408325612,1773427832658,-151.0,0.00019997,2]
[408325613,1773427832667,-151.0,0.00019997,2]
[408325614,1773427832676,-151.0,0.00019997,2]
[408325615,1773427832685,-151.0,0.00019997,2]
[408325616,1773427832695,-500.0,0.00019999,2]
[408325617,1773427832704,-500.0,0.00019999,2]
[408325618,1773427832713,-500.0,0.00019999,2]
[408325619,1773427832723,-500.0,0.00019999,2]
[408325620,1773427832733,-171.40613236,0.00019999,2]
[408325621,1773427832741,-457.32893571,0.00019999,2]
[408325622,1773427832754,-42.67106429,0.00019999,2]
[408325623,1773427832763,-500.0,0.00019999,2]
[408325624,1773427832772,-500.0,0.00019999,2]
[408325625,1773427832782,-500.0,0.00019999,2]
[408325626,1773427832792,-554.34014391,0.00019999,2]
[408325627,1773427832801,-588.84,0.00019999,2]
[408325628,1773427832810,-500.0,0.00019999,2]
[408325629,1773427832819,-191.39028097,0.00019999,2]
[408325630,1773427832829,-500.0,0.00019999,2]
[408325631,1773427832838,-500.0,0.00019999,2]
[408325632,1773427832848,-1892.0,0.0002,2]
[408325633,1773427832857,-1514.0,0.0002,2]
[408325634,1773427832866,-792.96105888,0.0002,7]
[408325649,1773427837427,-207.03894112,0.0002,7]
[408325650,1773427837436,-1000.0,0.0002,7]
[408325651,1773427837446,-1000.0,0.0002,7]
[408325652,1773427837455,-48477.96105888,0.0002,2]
[408325653,1773427837466,-1260.0,0.0002,2]
[408325654,1773427837478,-956.485885,0.0002,2]
[408325655,1773427837534,-454.66037796,0.0002,2]
[408325656,1773427837708,-240365.68233614,0.0002,2]
[408325657,1773427837720,-21395.99999999,0.0002,2]
[408325746,1773427839550,-6849.59165372,0.0002,2]
[408325747,1773427839607,-343.024,0.0002,2]
[408325748,1773427839837,-2316.21,0.0002,2]
[408325749,1773427839981,-35604.99999999,0.0002,2]
[408325756,1773427842563,-146434.51791916,0.0002,2]
[408325786,1773427845360,-841.66,0.0002,2]
[408325788,1773427845575,-13985.86908728,0.0002,2]
[408325789,1773427845629,-1526.01695461,0.0002,2]
[408325791,1773428380988,455.74,0.00025812,120]
[408325792,1773428381199,455.74,0.00028158,120]
[408325795,1773428483469,225.788408,0.00017699,7]
[408325796,1773428491340,3725.4033365,0.00032876,120]
[408325797,1773428501317,15272.58122138,0.0003287,120]
[408325801,1773428670688,156.8,9.214e-05,2]
[408325802,1773428670886,156.8,9.699e-05,2]
[408325803,1773428671110,156.8,0.00010184,2]
[408325804,1773428671312,156.8,0.00010669,2]
[408325805,1773428671535,156.8,0.00011154,2]
[408325806,1773428671749,156.8,0.00011639,2]
[408325807,1773428671972,156.8,0.00012123,2]
[408325808,1773428672312,156.8,0.00012608,2]
[408325809,1773428672539,156.8,0.00013093,2]
[408325810,1773428672743,156.8,0.00013578,2]
[408325811,1773428672957,156.8,0.00014063,2]
[408325813,1773428754117,-156.8,0.00014548,2]
[408325814,1773428754139,-936.85238317,0.00014999,2]
[408325815,1773428758112,7268.344883,0.00023512,30]
[408325816,1773428829094,-263.14761683,0.00014999,2]
[408325817,1773428829114,-300.0,0.00014999,2]
[408325818,1773428829134,-250.0,0.00015,2]
[408325819,1773428829154,-24212.35682954,0.00015,3]
[408325820,1773428829174,-156.8,0.00015033,2]
[408325821,1773428829195,-156.8,0.00015518,2]
[408325822,1773428829218,-156.8,0.00016003,2]
[408325823,1773428829239,-178.41803225,0.00016003,2]
[408325824,1773428829260,-242.65418782,0.000161,2]
[408325825,1773428829281,-20878.52521273,0.000162,5]
[408325826,1773428829301,-420.0,0.00016416,2]
[408325827,1773428829321,-156.8,0.00016488,2]
[408325828,1773428829342,-1680.0,0.00016499,2]
[408325829,1773428829362,-250.0,0.000165,2]
[408325830,1773428829382,-769.99695822,0.000165,2]
[408325831,1773428829401,-2494.76904057,0.000165,2]
[408325832,1773428829420,-500.0,0.000165,2]
[408325833,1773428829444,-500.0,0.000165,2]
[408325834,1773428829682,-504.09482637,0.000165,2]
[408325835,1773428829705,-500.0,0.000165,2]
[408325836,1773428829727,-613.96980727,0.00016553,2]
[408325837,1773428829748,-156.8,0.00016973,2]
[408325838,1773428829766,-7804.207416,0.00017,2]
[408325839,1773428829786,-500.0,0.00017048,2]
[408325840,1773428829806,-156.8,0.00017458,2]
[408325841,1773428829824,-191.64,0.00017499,2]
[408325842,1773428829843,-786.94121111,0.000177,2]
[408325843,1773428829862,-500.0,0.00017808,2]
[408325844,1773428829880,-1229.37027411,0.0001789,2]
[408325845,1773428829899,-1077.2668438,0.0001789,2]
[408325846,1773428829917,-150.0,0.00017923,2]
[408325847,1773428829938,-156.8,0.00017943,2]
[408325848,1773428829968,-587.0,0.00017966,2]
[408325849,1773428829993,-500.0,0.00018384,2]
[408325850,1773428830015,-848.0,0.000184,2]
[408325851,1773428830035,-848.0,0.000184,2]
[408325852,1773428830059,-156.8,0.00018428,2]
[408325853,1773428830079,-500.0,0.0001863,2]
[408325854,1773428830101,-200.0,0.00018722,2]
[408325855,1773428830123,-455.74,0.00018772,2]
[408325856,1773428830144,-321.0,0.0001882,2]
[408325857,1773428830163,-731.20410297,0.00018999,2]
[408325858,1773428830183,-500.0,0.00019014,2]
[408325859,1773428830203,-11142.58,0.00019049,2]
[408325860,1773428830223,-249.79,0.00019064,2]
[408325861,1773428830242,-500.0,0.00019233,2]
[408325862,1773428830261,-500.5198783,0.00019338,2]
[408325863,1773428830281,-166.67,0.00019348,2]
[408325864,1773428830301,-3753.0,0.00019406,2]
[408325865,1773428830321,-414.0,0.00019406,2]
[408325866,1773428830341,-923.0,0.00019406,2]
[408325867,1773428830364,-1214.0,0.000195,2]
[408325868,1773428830385,-916.0,0.00019525,2]
[408325869,1773428830405,-3854.01063303,0.000196,2]
[408325870,1773428830425,-3113.73604296,0.00019615,2]
[408325871,1773428830446,-150.0,0.00019626,2]
[408325872,1773428830466,-150.0,0.00019626,2]
[408325873,1773428830487,-150.0,0.00019626,2]
[408325874,1773428830508,-823.0,0.00019663,2]
[408325875,1773428830529,-177.0,0.00019681,2]
[408325876,1773428830554,-250.0,0.00019681,2]
[408325877,1773428830574,-250.0,0.00019681,2]
[408325878,1773428830599,-186.88,0.00019681,2]
[408325879,1773428830620,-150.0,0.00019725,2]
[408325880,1773428830640,-150.0,0.00019725,2]
[408325881,1773428830660,-150.0,0.00019726,7]
[408325882,1773428830680,-310.41600535,0.00019743,2]
[408325883,1773428830701,-321.0,0.00019761,2]
[408325884,1773428830720,-250.0,0.0001978,2]
[408325885,1773428830740,-250.0,0.0001978,2]
[408325886,1773428830760,-250.0,0.00019781,7]
[408325887,1773428830782,-1000.0,0.000198,2]
[408325888,1773428830805,-1350.029,0.000198,2]
[408325889,1773428830825,-45565.1315,0.000198,2]
[408325890,1773428830844,-1210.45632,0.000198,2]
[408325891,1773428830864,-1210.45633,0.000198,2]
[408325892,1773428830886,-916.0,0.0001982,2]
[408325893,1773428830906,-2475.524,0.00019887,2]
[408325894,1773428830928,-629.58763251,0.00019898,2]
[408325895,1773428830948,-629.58763246,0.00019898,2]
[408325896,1773428830968,-629.58763246,0.00019899,2]
[408325897,1773428830987,-629.58763246,0.00019899,2]
[408325898,1773428831011,-2500.0,0.00019899,2]
[408325899,1773428831032,-1004.48068746,0.00019899,2]
[408325900,1773428831053,-1004.48068738,0.00019899,2]
[408325901,1773428831073,-629.58763246,0.00019899,2]
[408325902,1773428831094,-1004.48068738,0.00019899,2]
[408325903,1773428831114,-1004.48068738,0.00019899,2]
[408325904,1773428831133,-629.58763246,0.00019899,2]
[408325905,1773428831153,-1004.48068738,0.00019899,2]
[408325906,1773428831173,-1004.48068738,0.000199,2]
[408325907,1773428831194,-1004.48068738,0.000199,2]
[408325908,1773428831220,-629.58763246,0.000199,2]
[408325909,1773428831243,-1004.48068738,0.000199,2]
[408325910,1773428831266,-1004.48068738,0.000199,2]
[408325911,1773428831286,-9283.4941,0.000199,2]
[408325912,1773428831308,-5314.1355,0.000199,2]
[408325913,1773428831328,-705.69050812,0.000199,2]
[408325914,1773428831348,-92634.62454473,0.000199,2]
[408325915,1773428831371,-1004.48068738,0.000199,2]
[408325916,1773428831391,-655.44500854,0.000199,2]
[408325917,1773428831411,-1095.55139928,0.000199,2]
[408325918,1773428831433,-1701.06742304,0.000199,2]
[408325919,1773428831453,-629.58763246,0.000199,2]
[408325920,1773428831473,-265.1719086,0.00019901,2]
[408325921,1773428831494,-500.0,0.00019901,2]
[408325922,1773428831516,-500.0,0.00019901,2]
[408325923,1773428831536,-351.22,0.00019901,2]
[408325924,1773428831563,-366.58254281,0.00019901,2]
[408325925,1773428850097,-217.94309222,0.000199,2]
[408325926,1773428850118,-133.41745719,0.00019901,2]
[408325927,1773428850138,-500.0,0.00019901,2]
[408325928,1773428850162,-500.0,0.00019901,2]
[408325929,1773428850184,-500.0,0.00019901,2]
[408325930,1773428850208,-500.0,0.00019901,2]
[408325931,1773428850232,-500.0,0.00019901,2]
[408325932,1773428850253,-500.0,0.00019901,2]
[408325933,1773428850278,-475.12005917,0.00019901,2]
[408325934,1773428850303,-254.46147411,0.00019901,2]
[408325935,1773428850325,-245.25595034,0.00019901,2]
[408325936,1773428850349,-489.65933266,0.00019901,2]
[408325946,1773429031488,-3240.0,0.00019097,2]
[408325947,1773429031503,-180.0,0.00019626,2]
[408325948,1773429031517,-150.0,0.00019626,2]
[408325949,1773429031533,-150.0,0.00019626,2]
[408325950,1773429031549,-150.0,0.00019626,2]
[408325951,1773429031564,-200.0,0.00019726,2]
[408325952,1773429031577,-20.24667252,0.000198,2]
[408325953,1773429031616,-214.25412748,0.000198,2]
[408325954,1773429031630,-1341.0,0.00019885,2]
[408325955,1773429031646,-1200.0,0.00019899,2]
[408325956,1773429031660,-1436.64822739,0.000199,2]
[408325957,1773429031674,-1358.73456222,0.000199,2]